[Event "44th Chess Olympiad Open 2022"]
[Site "Chennai"]
[Date "2022.07.30"]
[Round "2.89"]
[White "Ihsan Mohamed N T"]
[Black "Fomevor, Cephas Clinton"]
[Result "0-1"]
[WhiteElo "1208"]
[BlackElo "1830"]
[Annotator "NA RC"]
[PlyCount "72"]
[EventDate "2022.??.??"]
[TimeControl "60"]

1. d4 {[%emt 0:00:02]} d5 {[%emt 0:00:03]} 2. Nc3 {[%emt 0:00:38]} Nf6 {
[%emt 0:00:54]} 3. e3 {[%emt 0:00:27]} Bf5 {[%emt 0:00:29]} 4. Nf3 {[%emt 0:00:
00]} e6 {[%emt 0:00:17]} 5. Bb5+ {[%emt 0:00:26]} c6 {[%emt 0:01:22]} 6. Bd3 {
[%emt 0:01:02]} Bg4 {[%emt 0:00:28]} 7. O-O {[%emt 0:00:57]} Be7 {[%emt 0:00:
00]} 8. Be2 {[%emt 0:00:34]} Nbd7 {[%emt 0:01:25]} 9. Ne5 {[%emt 0:01:28]} Nxe5
{[%emt 0:03:01]} 10. dxe5 {[%emt 0:00:45]} Bxe2 {[%emt 0:00:28]} 11. Qxe2 {
[%emt 0:00:37]} Nd7 {[%emt 0:00:12]} 12. e4 {[%emt 0:02:43]} d4 {[%emt 0:02:12]
} 13. Nd1 {[%emt 0:02:26]} Nxe5 {[%emt 0:00:41]} 14. Bf4 {[%emt 0:01:31]} Bf6 {
[%emt 0:02:23]} 15. c3 {[%emt 0:01:54]} O-O {[%emt 0:02:42]} 16. cxd4 {[%emt 0:
00:00]} Qxd4 {[%emt 0:00:22]} 17. Be3 {[%emt 0:04:43]} Qxe4 {[%emt 0:00:37]}
18. Nc3 {[%emt 0:04:27]} Qg6 {[%emt 0:01:43]} 19. Bc5 {[%emt 0:06:47]} Rfd8 {
[%emt 0:03:10]} 20. Rad1 {[%emt 0:00:00]} h5 {[%emt 0:05:02]} 21. h3 {[%emt 0:
00:00]} Nd3 {[%emt 0:00:44]} 22. Ne4 {[%emt 0:03:01]} Nf4 {[%emt 0:04:28]} 23.
Qf3 {[%emt 0:01:25]} Nxh3+ {[%emt 0:05:54]} 24. Qxh3 {[%emt 0:01:02]} Qxe4 {
[%emt 0:00:20]} 25. b4 {[%emt 0:01:16]} h4 {[%emt 0:01:17]} 26. g3 {[%emt 0:00:
00]} Rd3 {[%emt 0:07:03]} 27. Rde1 {[%emt 0:01:12]} Qg6 {[%emt 0:02:15]} 28.
Re3 {[%emt 0:02:08]} b6 {[%emt 0:03:23]} 29. Bxb6 {[%emt 0:04:19]} axb6 {
[%emt 0:00:03]} 30. Rd1 {[%emt 0:00:58]} Rxd1+ {[%emt 0:00:07]} 31. Kg2 {
[%emt 0:00:46]} Qb1 {[%emt 0:01:24]} 32. Kf3 {[%emt 0:03:26]} Qxa2 {[%emt 0:00:
00]} 33. gxh4 {[%emt 0:01:26]} Qd5+ {[%emt 0:00:08]} 34. Kg3 {[%emt 0:03:22]}
Rg1+ {[%emt 0:00:25]} 35. Kf4 {[%emt 0:01:18]} g5+ {[%emt 0:00:00]} 36. hxg5 {
[%emt 0:05:15]} Bxg5# {[%emt 0:00:00]} 0-1

[Event "44th Chess Olympiad Open 2022"]
[Site "Chennai"]
[Date "2022.07.30"]
[Round "2.92"]
[White "Stanley, Samson P."]
[Black "Kannappan, Thanneermalai"]
[Result "0-1"]
[WhiteElo "1877"]
[BlackElo "1699"]
[Annotator "NA RC"]
[PlyCount "68"]
[EventDate "2022.??.??"]
[TimeControl "60"]

1. d4 {[%emt 0:00:34]} Nf6 {[%emt 0:00:03]} 2. Nf3 {[%emt 0:00:22]} g6 {
[%emt 0:00:05]} 3. Nc3 {[%emt 0:00:14]} d5 {[%emt 0:00:10]} 4. Bf4 {[%emt 0:00:
00]} Bg7 {[%emt 0:00:24]} 5. e3 {[%emt 0:02:07]} O-O {[%emt 0:00:02]} 6. b4 {
[%emt 0:01:16]} Nh5 {[%emt 0:00:40]} 7. Be5 {[%emt 0:02:26]} f6 {[%emt 0:00:14]
} 8. Bf4 {[%emt 0:04:12]} Nxf4 {[%emt 0:00:12]} 9. exf4 {[%emt 0:01:11]} Qd6 {
[%emt 0:00:17]} 10. Qd3 {[%emt 0:02:22]} Qxb4 {[%emt 0:01:12]} 11. Be2 {
[%emt 0:02:23]} Bf5 {[%emt 0:01:20]} 12. Qd2 {[%emt 0:01:18]} c6 {[%emt 0:00:
00]} 13. O-O {[%emt 0:01:05]} Qd6 {[%emt 0:01:10]} 14. Bd3 {[%emt 0:09:11]}
Bxd3 {[%emt 0:00:01]} 15. cxd3 {[%emt 0:00:38]} Nd7 {[%emt 0:00:30]} 16. a4 {
[%emt 0:05:24]} e5 {[%emt 0:00:14]} 17. a5 {[%emt 0:03:46]} exd4 {[%emt 0:00:
00]} 18. Nxd4 {[%emt 0:01:19]} f5 {[%emt 0:00:33]} 19. Qa2 {[%emt 0:05:39]}
Bxd4 {[%emt 0:00:12]} 20. Ne2 {[%emt 0:01:33]} Bxa1 {[%emt 0:00:08]} 21. Rxa1 {
[%emt 0:03:49]} Nc5 {[%emt 0:00:19]} 22. d4 {[%emt 0:02:15]} Nd3 {[%emt 0:00:
00]} 23. g3 {[%emt 0:03:18]} Rae8 {[%emt 0:00:20]} 24. f3 {[%emt 0:04:26]} Qe6
{[%emt 0:00:11]} 25. Qd2 {[%emt 0:04:52]} Qxe2 {[%emt 0:00:05]} 26. Qxe2 {
[%emt 0:02:17]} Rxe2 {[%emt 0:00:03]} 27. g4 {[%emt 0:06:01]} Rfe8 {[%emt 0:00:
00]} 28. h3 {[%emt 0:02:01]} Rd2 {[%emt 0:00:53]} 29. h4 {[%emt 0:00:53]} Ree2
{[%emt 0:00:03]} 30. g5 {[%emt 0:02:17]} Nxf4 {[%emt 0:00:46]} 31. Rb1 {
[%emt 0:01:46]} Rg2+ {[%emt 0:00:08]} 32. Kf1 {[%emt 0:00:50]} Rdf2+ {[%emt 0:
00:00]} 33. Ke1 {[%emt 0:00:26]} Nd3+ {[%emt 0:00:03]} 34. Kd1 {[%emt 0:00:25]}
Rd2# {[%emt 0:00:03]} 0-1

[Event "44th Chess Olympiad Open 2022"]
[Site "Chennai"]
[Date "2022.07.31"]
[Round "3.1"]
[White "Harikrishna, Pentala"]
[Black "Mastrovasilis, Dimitrios"]
[Result "1-0"]
[WhiteElo "2720"]
[BlackElo "2599"]
[Annotator "TA"]
[PlyCount "59"]
[EventDate "2022.??.??"]
[TimeControl "60"]

{[%evp 16,59,3,29,29,20,47,48,34,39,40,43,41,25,46,0,0,0,0,0,13,18,19,25,61,44,
33,26,39,27,87,79,505,493,764,706,957,643,972,932,891,825,2181,2230,1868,1800]
} 1. c4 {[%emt 0:00:03]} e6 {[%emt 0:00:14]} 2. Nf3 {[%emt 0:00:15]} d5 {
[%emt 0:00:17]} 3. g3 {[%emt 0:00:04]} Nf6 {[%emt 0:00:26]} 4. Bg2 {[%emt 0:00:
00]} Be7 {[%emt 0:00:56]} 5. O-O {[%emt 0:00:09]} O-O {[%emt 0:00:08]} 6. d4 {
[%emt 0:00:34]} c6 {[%emt 0:00:23]} 7. Nc3 {[%emt 0:00:20]} Nbd7 {[%emt 0:00:
00]} 8. Qd3 {[%emt 0:00:42]} b6 {[%emt 0:01:24]} 9. b3 {[%emt 0:00:40]} a5 {
[%emt 0:10:31] E07: Closed Catalan: Main Line (5 Nf3 0-0 6 0-0 Nbd7).} 10. e4 {
[%emt 0:05:00][%cal Ye2e4,Ye4e5]} Ba6 {[%emt 0:05:50][%cal Yb6b5]} 11. e5 {
[%emt 0:04:37]} Ne8 {[%emt 0:01:26] White is slightly better.} 12. a4 {[%emt 0:
05:42]} Nc7 {[%emt 0:07:02]} 13. Rd1 {[%emt 0:07:35] [#]} h6 $146 {[%emt 0:04:
13]} ({Predecessor:} 13... Rc8 14. h4 c5 15. Nb5 cxd4 16. Qxd4 Nc5 17. Qg4 Bxb5
18. cxb5 Nxb3 19. Bh6 Ne8 20. Rab1 Rc4 21. Qxc4 dxc4 22. Rxd8 Bxd8 23. Be3 Nc7
24. Nd4 {½-½ (24) Andreikin,D (2729)-Maghsoodloo,P (2699) Chess. com INT 2022
}) 14. h4 {[%emt 0:06:33]} Rb8 {[%emt 0:16:29]} 15. Bf4 {[%emt 0:00:00]} (15.
Nh2 $14) 15... b5 $11 {[%emt 0:05:51]} 16. cxb5 {[%emt 0:06:54]} cxb5 {[%emt 0:
00:11]} 17. Qc2 {[%emt 0:08:55]} Rc8 {[%emt 0:13:19]} 18. Rdc1 {[%emt 0:03:36]}
Bb4 {[%emt 0:02:48]} 19. Qd1 {[%emt 0:02:42]} Nb6 {[%emt 0:00:00]} 20. Nh2 {
[%emt 0:07:33][%cal Yf3h2,Yh2g4,Yg4f6,Yf6h5]} bxa4 {[%emt 0:04:16]} 21. Nxa4 {
[%emt 0:01:36]} Nxa4 {[%emt 0:03:07]} 22. bxa4 {[%emt 0:01:37]} Qe7 {[%emt 0:
09:44] [#]} (22... Ne8 $11 {keeps the balance.}) 23. Ng4 $1 $16 {[%emt 0:04:50]
} Na8 $2 {[%emt 0:01:10] [#] A mistake that costs the game.} (23... Ne8 $16 {
is tougher.}) 24. Bxh6 $1 $18 {[%emt 0:02:36] White is clearly winning.} gxh6 {
[%emt 0:00:14]} (24... f5 $142 25. exf6 gxf6 26. Bxf8 Rxf8) 25. Nf6+ {[%emt 0:
00:03]} Kg7 {[%emt 0:01:50]} 26. Qg4+ {[%emt 0:00:06]} Kh8 {[%emt 0:00:06]} 27.
Qf4 {[%emt 0:01:22][%cal Rf4h6]} Kg7 {[%emt 0:00:18] [#]} 28. Bxd5 $1 {[%emt 0:
01:28] White wants to mate with Nh5+.} Bd3 {[%emt 0:02:34]} (28... Rh8 29. Rxc8
) 29. Nh5+ {[%emt 0:00:00]} Kh7 {[%emt 0:01:16]} 30. Be4+ {[%emt 0:00:11]
Weighted Error Value: White=0.04 (flawless) /Black=0.67} 1-0

[Event "44th Chess Olympiad Open 2022"]
[Site "Chennai"]
[Date "2022.07.31"]
[Round "3.1"]
[White "Erigaisi Arjun"]
[Black "Mastrovasilis, Athanasios"]
[Result "1-0"]
[WhiteElo "2689"]
[BlackElo "2527"]
[Annotator "TA"]
[PlyCount "101"]
[EventDate "2022.??.??"]
[TimeControl "60"]

{[%evp 14,101,22,3,24,0,6,0,5,8,17,0,6,0,9,0,7,7,2,10,0,0,0,0,0,0,18,0,5,0,5,0,
10,0,42,45,34,37,50,43,41,45,70,67,121,126,122,132,110,113,112,102,159,168,141,
158,159,34,61,49,111,42,75,27,40,0,54,50,88,114,115,112,112,117,103,105,101,
108,415,392,384,381,579,460,572,532,850,843,29991,29992]} 1. d4 {[%emt 0:00:06]
} d5 {[%emt 0:00:15]} 2. c4 {[%emt 0:00:07]} e6 {[%emt 0:00:10]} 3. Nc3 {
[%emt 0:00:06]} Nf6 {[%emt 0:00:25]} 4. cxd5 {[%emt 0:00:06]} exd5 {[%emt 0:00:
00]} 5. Bg5 {[%emt 0:00:06]} c6 {[%emt 0:00:30]} 6. e3 {[%emt 0:00:06]} h6 {
[%emt 0:00:34]} 7. Bh4 {[%emt 0:00:40]} Be7 {[%emt 0:00:12]} 8. Bd3 {[%emt 0:
00:00]} Nbd7 {[%emt 0:00:58] D35: Queen's Gambit Declined: Exchange Variation.}
9. f3 {[%emt 0:05:39]} O-O {[%emt 0:05:36]} 10. Nge2 {[%emt 0:00:26]} Re8 {
[%emt 0:01:18] The position is equal.} 11. O-O {[%emt 0:01:18]} b5 {[%emt 0:00:
00]} 12. Bf2 {[%emt 0:23:15]} a6 {[%emt 0:21:47]} 13. Rc1 {[%emt 0:04:30]} Bb7
{[%emt 0:03:06]} 14. Bf5 {[%emt 0:00:10]} c5 {[%emt 0:05:38]} 15. dxc5 {
[%emt 0:02:00]} Bxc5 {[%emt 0:02:40]} 16. Nd4 {[%emt 0:00:23] [#]} Bb6 $146 {
[%emt 0:01:28]} ({Predecessor:} 16... Qe7 17. Bh3 g6 18. Re1 Bb6 19. Bh4 Qd6
20. Kh1 Nh5 21. a4 Ne5 {½-½ (23) Tasic,V (2389)-Hofer,R (2381) ICCF email
2019}) 17. Qd2 {[%emt 0:07:46]} Ne5 {[%emt 0:03:46]} 18. b3 {[%emt 0:00:33]
Against Nc4} g6 {[%emt 0:10:10]} 19. Bb1 {[%emt 0:02:26]} Rc8 {[%emt 0:01:04]}
20. Nce2 {[%emt 0:00:35]} Qe7 {[%emt 0:02:38]} 21. Nf4 {[%emt 0:10:39]} Qa3 {
[%emt 0:07:53]} 22. Rcd1 {[%emt 0:02:01]} Ba5 {[%emt 0:04:41]} 23. Qe2 {
[%emt 0:01:23]} Bc3 {[%emt 0:00:47]} 24. Be1 {[%emt 0:12:11]} Qe7 {[%emt 0:00:
00]} 25. Kh1 {[%emt 0:10:01]} Bxe1 {[%emt 0:03:47]} 26. Qxe1 {[%emt 0:01:33]}
Qf8 {[%emt 0:06:22]} 27. h4 {[%emt 0:04:24]} h5 {[%emt 0:00:26]} 28. Qg3 {
[%emt 0:01:41][%cal Yf4e6]} Qg7 {[%emt 0:00:31] [#]} (28... Kh8 $14) 29. Nfe6
$1 $16 fxe6 {[%emt 0:00:45]} 30. Qxe5 {[%emt 0:00:42]} Nd7 {[%emt 0:02:49]} 31.
Qg5 {[%emt 0:03:24]} Nf8 {[%emt 0:00:56]} 32. f4 {[%emt 0:00:00]} e5 {[%emt 0:
02:10]} ({Black should play} 32... Rc3) 33. fxe5 {[%emt 0:00:00]} Rxe5 {
[%emt 0:00:25]} 34. Qg3 {[%emt 0:00:50]} Rce8 {[%emt 0:00:16]} 35. Rfe1 {
[%emt 0:02:03] White is more active.} (35. Rf3 $16) 35... Bc8 {[%emt 0:01:49]}
36. Rc1 {[%emt 0:00:25]} Bg4 {[%emt 0:00:45]} (36... Bd7 $14) 37. b4 {[%emt 0:
03:38]} (37. Rc6 $16) 37... g5 {[%emt 0:01:03]} 38. hxg5 {[%emt 0:01:03]} (38.
Rc6 $16) 38... Qxg5 $11 {[%emt 0:01:03][%cal Re5e3]} 39. Rc3 {[%emt 0:00:07]} (
39. Qf2 $5 {[%cal Rc1c6]}) 39... R5e7 {[%emt 0:01:20]} (39... Nd7 $1 $11) 40.
Nf5 $14 {[%emt 0:01:44]} Re5 {[%emt 0:00:38] [#]} 41. Rf1 {[%emt 0:07:49]} Qf6
{[%emt 0:14:12][%cal Re5f5]} 42. Rcc1 {[%emt 0:07:51][%cal Yc3c1,Yc1c7,Yc7h7]
Kh2 is the strong threat.} Kh8 {[%emt 0:00:00][%cal Rg4f5]} 43. Nh4 $36 {
[%emt 0:00:25] White is really pushing.} Rxe3 {[%emt 0:00:46] Threatens to win
with ...Qxf1+.} 44. Rxf6 {[%emt 0:00:06] Threatening mate with Qf4.} Rxg3 {
[%emt 0:00:05]} 45. Rc7 {[%emt 0:00:09]} Be6 $2 {[%emt 0:04:37] This move
loses the game for Black.} (45... d4 $16) 46. Ng6+ $18 {[%emt 0:04:53]} Nxg6 {
[%emt 0:00:21]} 47. Bxg6 {[%emt 0:00:06]} Rc8 {[%emt 0:00:18]} (47... Rxg6 $142
48. Rxg6 d4) 48. Rh7+ {[%emt 0:00:30]} Kg8 {[%emt 0:00:05][%cal Yg3g6]} 49. Ra7
{[%emt 0:02:33] aiming for Bh7+.} ({Worse is} 49. Rxe6 {[#]} Rxg6 $1 50. Rxg6+
Kxh7 51. Rxa6 Rd8 $11) 49... Bg4 {[%emt 0:03:00]} 50. Bf7+ {[%emt 0:02:36]} Kh8
{[%emt 0:00:00]} 51. Bxd5 {[%emt 0:00:41] Weighted Error Value: White=0.13 
(very precise) / Black=0.49} 1-0

[Event "44th Chess Olympiad Open 2022"]
[Site "Chennai"]
[Date "2022.07.31"]
[Round "3.1"]
[White "Theodorou, Nikolas"]
[Black "Vidit, Santosh Gujrathi"]
[Result "1/2-1/2"]
[WhiteElo "2575"]
[BlackElo "2714"]
[Annotator "TA"]
[PlyCount "60"]
[EventDate "2022.??.??"]
[TimeControl "60"]

{[%evp 23,60,10,30,0,0,0,0,0,0,0,0,0,0,0,0,0,0,0,0,0,0,0,0,0,0,0,0,0,0,0,0,0,0,
0,0,0,0,0,0]} 1. d4 {[%emt 0:00:08]} Nf6 {[%emt 0:00:43]} 2. c4 {[%emt 0:00:13]
} e6 {[%emt 0:00:13]} 3. Nf3 {[%emt 0:00:14]} d5 {[%emt 0:00:18]} 4. g3 {
[%emt 0:00:11]} Be7 {[%emt 0:00:44]} 5. Bg2 {[%emt 0:00:28]} O-O {[%emt 0:00:
00]} 6. O-O {[%emt 0:01:02]} dxc4 {[%emt 0:00:10]} 7. Qc2 {[%emt 0:00:09]} a6 {
[%emt 0:00:25]} 8. a4 {[%emt 0:00:36]} Bd7 {[%emt 0:00:11][%cal Yc8d7,Yd7c6,
Yc6d5,Yd5e4]} 9. Qxc4 {[%emt 0:00:27]} Bc6 {[%emt 0:00:08]} 10. Bg5 {[%emt 0:
00:22]} Bd5 {[%emt 0:00:20]} 11. Qc2 {[%emt 0:00:37]} Be4 {[%emt 0:00:00]} 12.
Qc1 {[%emt 0:00:10]} Nc6 {[%emt 0:00:36]} 13. Bxf6 {[%emt 0:15:47] E05: Open
Catalan: 5 Nf3 Be7.} Bxf6 {[%emt 0:04:26] The position is equal.} 14. e3 {
[%emt 0:00:08]} e5 {[%emt 0:08:05] [#]} 15. dxe5 $146 {[%emt 0:06:25]} ({
Predecessor:} 15. Nxe5 Bxg2 16. Kxg2 Nxe5 17. dxe5 Qd5+ 18. Kg1 Qxe5 19. Nc3
Rad8 20. Qc2 Qc5 21. Rac1 Bxc3 22. Qxc3 Qxc3 23. Rxc3 {½-½ (63) Badzgaradze,
E (1903)-Shafigullina,Z (2117) Moscow 2018}) 15... Bxf3 {[%emt 0:17:58]} 16.
Bxf3 {[%emt 0:01:48]} Nxe5 {[%emt 0:00:11]} 17. Bg2 {[%emt 0:08:44]} ({But not
} 17. Bxb7 Rb8 18. Bg2 {[#]} (18. Bxa6 $2 Nf3+ 19. Kh1 Bxb2 $19) 18... Nf3+ $1
19. Bxf3 Bxb2 $17) 17... c6 {[%emt 0:09:11]} 18. Rd1 {[%emt 0:04:01]} Qb6 {
[%emt 0:08:18]} 19. Qc2 {[%emt 0:06:10]} Rad8 {[%emt 0:03:00][%cal Yb6b2] [#]
Threatens to win with ...Qxb2!} 20. Nd2 {[%emt 0:02:27][%cal Yb1d2,Yd2e4,Ye4c3,
Yc3e2]} Qb4 {[%emt 0:01:40]} 21. Ne4 {[%emt 0:10:56]} Be7 {[%emt 0:00:00]} 22.
b3 {[%emt 0:00:44]} f5 {[%emt 0:12:46]} 23. Nc3 {[%emt 0:08:14]} g6 {[%emt 0:
00:00]} 24. Ne2 {[%emt 0:01:37]} Rxd1+ {[%emt 0:02:16]} 25. Rxd1 {[%emt 0:00:
10]} Rd8 {[%emt 0:00:07]} 26. Nd4 {[%emt 0:03:08]} Kf7 {[%emt 0:00:00]} 27. h3
{[%emt 0:01:57]} Rd6 {[%emt 0:06:13]} 28. Nf3 {[%emt 0:10:36]} Nxf3+ {[%emt 0:
00:00]} 29. Bxf3 {[%emt 0:00:03]} Rxd1+ {[%emt 0:04:23]} 30. Qxd1 {[%emt 0:00:
32]} Qd6 {[%emt 0:00:16] A balanced but interesting game. Weighted Error Value:
White=0.02 (flawless) /Black=0.00 (flawless)} 1/2-1/2

[Event "44th Chess Olympiad Open 2022"]
[Site "Chennai"]
[Date "2022.07.31"]
[Round "3.1"]
[White "Ioannidis, Evgenios"]
[Black "Sasikiran, Krishnan"]
[Result "1/2-1/2"]
[WhiteElo "2459"]
[BlackElo "2638"]
[Annotator "RC"]
[PlyCount "131"]
[EventDate "2022.??.??"]
[TimeControl "60"]

1. d4 {[%emt 0:00:12]} Nf6 {[%emt 0:00:13]} 2. c4 {[%emt 0:00:20]} e6 {[%emt 0:
00:00]} 3. Nc3 {[%emt 0:00:30]} Bb4 {[%emt 0:00:10]} 4. e3 {[%emt 0:00:58]} O-O
{[%emt 0:01:01]} 5. Bd2 {[%emt 0:00:30]} d5 {[%emt 0:02:55]} 6. Nf3 {[%emt 0:
00:00]} Nbd7 {[%emt 0:03:47]} 7. Bd3 {[%emt 0:06:38]} dxc4 {[%emt 0:09:11]} 8.
Bxc4 {[%emt 0:00:12]} b6 {[%emt 0:00:57]} 9. Qe2 {[%emt 0:20:10]} Bb7 {[%emt 0:
00:00]} 10. O-O {[%emt 0:00:24]} c5 {[%emt 0:04:07]} 11. a3 {[%emt 0:06:04]}
Bxc3 {[%emt 0:08:51]} 12. Bxc3 {[%emt 0:00:19]} Ne4 {[%emt 0:02:19]} 13. Rfd1 {
[%emt 0:02:55]} Nxc3 {[%emt 0:05:12]} 14. bxc3 {[%emt 0:00:07]} Qc7 {[%emt 0:
00:00]} 15. a4 {[%emt 0:12:57]} Rfd8 {[%emt 0:08:06]} 16. Ba6 {[%emt 0:03:38]}
Nf6 {[%emt 0:03:47]} 17. Bxb7 {[%emt 0:08:24]} Qxb7 {[%emt 0:00:12]} 18. Ne5 {
[%emt 0:03:22]} Qc7 {[%emt 0:09:38]} 19. Qb5 {[%emt 0:04:55]} Nd5 {[%emt 0:00:
00]} 20. Qb2 {[%emt 0:04:30]} Rac8 {[%emt 0:03:02]} 21. Rdc1 {[%emt 0:01:16]}
Rb8 {[%emt 0:04:26]} 22. Nd3 {[%emt 0:04:47]} h6 {[%emt 0:01:03]} 23. h3 {
[%emt 0:02:37]} Rdc8 {[%emt 0:01:22]} 24. c4 {[%emt 0:02:50]} Ne7 {[%emt 0:00:
00]} 25. dxc5 {[%emt 0:07:20]} bxc5 {[%emt 0:02:17]} 26. Qc3 {[%emt 0:00:49]}
Nf5 {[%emt 0:03:17]} 27. Rab1 {[%emt 0:02:41]} Nd6 {[%emt 0:00:44]} 28. Rxb8 {
[%emt 0:01:50]} Rxb8 {[%emt 0:00:59]} 29. Qe5 {[%emt 0:00:09]} Rc8 {[%emt 0:00:
00]} 30. g4 {[%emt 0:01:41]} Qc6 {[%emt 0:02:52]} 31. Qf4 {[%emt 0:00:31]} f6 {
[%emt 0:00:30]} 32. Ne1 {[%emt 0:00:55]} Nf7 {[%emt 0:01:10]} 33. a5 {[%emt 0:
00:00]} Rd8 {[%emt 0:01:03]} 34. Qf3 {[%emt 0:00:13]} Qa4 {[%emt 0:00:40]} 35.
Qb7 {[%emt 0:00:38]} Qxa5 {[%emt 0:00:19]} 36. Nf3 {[%emt 0:00:05]} Qb6 {
[%emt 0:01:08]} 37. Qe4 {[%emt 0:00:04]} Re8 {[%emt 0:01:09]} 38. Rb1 {[%emt 0:
00:00]} Nd6 {[%emt 0:00:39]} 39. Rxb6 {[%emt 0:01:46]} Nxe4 {[%emt 0:00:03]}
40. Ra6 {[%emt 0:00:05]} Re7 {[%emt 0:00:24]} 41. Ne1 {[%emt 0:01:24]} e5 {
[%emt 0:08:32]} 42. Ra5 {[%emt 0:01:20]} Rc7 {[%emt 0:01:44]} 43. Nd3 {[%emt 0:
00:00]} Kf7 {[%emt 0:10:53]} 44. Kg2 {[%emt 0:01:33]} Nd6 {[%emt 0:02:58]} 45.
Nxc5 {[%emt 0:01:06]} Nxc4 {[%emt 0:00:10]} 46. Rb5 {[%emt 0:00:02]} Nd6 {
[%emt 0:02:19]} 47. Ra5 {[%emt 0:00:06]} Nc4 {[%emt 0:00:02]} 48. Rb5 {[%emt 0:
00:00]} a5 {[%emt 0:00:06]} 49. Kf3 {[%emt 0:00:45]} Ra7 {[%emt 0:01:37]} 50.
Na4 {[%emt 0:00:25]} Ke7 {[%emt 0:02:13]} 51. Rc5 {[%emt 0:01:55]} Nd2+ {
[%emt 0:01:07]} 52. Ke2 {[%emt 0:00:12]} Ne4 {[%emt 0:00:06]} 53. Rc4 {[%emt 0:
00:00]} Nd6 {[%emt 0:00:38]} 54. Rc5 {[%emt 0:00:21]} g6 {[%emt 0:02:15]} 55.
Kf3 {[%emt 0:02:46]} Ke6 {[%emt 0:01:00]} 56. Rc6 {[%emt 0:01:02]} Kd7 {
[%emt 0:00:53]} 57. Rc1 {[%emt 0:01:32]} Ke7 {[%emt 0:00:54]} 58. Rc5 {[%emt 0:
00:00]} h5 {[%emt 0:00:43]} 59. g5 {[%emt 0:05:15]} fxg5 {[%emt 0:00:14]} 60.
Rxe5+ {[%emt 0:00:06]} Kf6 {[%emt 0:00:06]} 61. Rc5 {[%emt 0:03:27]} Nf7 {
[%emt 0:00:58]} 62. Rc6+ {[%emt 0:01:28]} Kg7 {[%emt 0:00:15]} 63. Rc5 {
[%emt 0:00:19]} Kf6 {[%emt 0:00:36]} 64. Rc6+ {[%emt 0:00:06]} Kg7 {[%emt 0:00:
00]} 65. Rc5 {[%emt 0:00:04]} Kf6 {[%emt 0:02:01]} 66. Ke4 {[%emt 0:12:38]}
1/2-1/2